lending/lending_fUSD_20250318
["ID","MTS","AMOUNT","RATE_DAILY","PERIOD"]
[356355429,1742332251923,-294.24,0.00013,2]
[356355430,1742332251933,-294.24,0.00013,2]
[356355431,1742332251942,-294.24,0.00013,2]
[356355432,1742332251952,-294.24,0.00013,2]
[356355433,1742332251962,-294.24,0.00013,2]
[356355434,1742332251972,-294.24,0.00013,2]
[356355435,1742332251981,-294.24,0.00013,2]
[356355436,1742332251990,-294.24,0.00013,2]
[356355437,1742332252000,-294.24,0.00013,2]
[356355438,1742332252009,-294.24,0.00013,2]
[356355439,1742332252018,-294.24,0.00013,2]
[356355440,1742332252028,-294.24,0.00013,2]
[356355441,1742332252042,-294.24,0.00013,2]
[356355442,1742332252052,-294.24,0.00013,2]
[356355443,1742332252061,-294.24,0.00013,2]
[356355444,1742332252071,-294.24,0.00013,2]
[356355445,1742332252081,-294.24,0.00013,2]
[356355446,1742332252091,-294.24,0.00013,2]
[356355447,1742332252101,-294.24,0.00013,2]
[356355448,1742332252111,-294.24,0.00013,2]
[356355449,1742332252121,-294.24,0.00013,2]
[356355450,1742332252131,-294.24,0.00013,2]
[356355451,1742332252141,-360.536216,0.00013,2]
[356355452,1742332252151,-294.24,0.00013,2]
[356355453,1742332252161,-294.24,0.00013,2]
[356355454,1742332252170,-294.24,0.00013,2]
[356355455,1742332252180,-294.24,0.00013,2]
[356355456,1742332252190,-294.24,0.00013,2]
[356355457,1742332252202,-294.24,0.00013,2]
[356355458,1742332252212,-294.24,0.00013,2]
[356355459,1742332252222,-294.24,0.00013,2]
[356355460,1742332252231,-294.24,0.00013,2]
[356355461,1742332252241,-294.24,0.00013,2]
[356355462,1742332252250,-294.24,0.00013,2]
[356355463,1742332252260,-294.24,0.00013,2]
[356355464,1742332252270,-294.24,0.00013,2]
[356355465,1742332252280,-294.24,0.00013,2]
[356355466,1742332252289,-294.24,0.00013,2]
[356355467,1742332252299,-294.24,0.00013,2]
[356355468,1742332252308,-294.24,0.00013,2]
[356355469,1742332252318,-294.24,0.00013,2]
[356355470,1742332252326,-294.24,0.00013,2]
[356355471,1742332252335,-294.24,0.00013,2]
[356355472,1742332252345,-294.24,0.00013,2]
[356355473,1742332252354,-294.24,0.00013,2]
[356355474,1742332252364,-294.24,0.00013,2]
[356355475,1742332252373,-294.24,0.00013,2]
[356355476,1742332252383,-294.24,0.00013,2]
[356355477,1742332252392,-294.24,0.00013,2]
[356355478,1742332252401,-294.24,0.00013,2]
[356355479,1742332252411,-294.24,0.00013,2]
[356355480,1742332252420,-294.24,0.00013,2]
[356355481,1742332252429,-294.24,0.00013,2]
[356355482,1742332252439,-294.24,0.00013,2]
[356355483,1742332252449,-294.24,0.00013,2]
[356355484,1742332252458,-294.24,0.00013,2]
[356355485,1742332252468,-294.24,0.00013,2]
[356355486,1742332252478,-294.24,0.00013,2]
[356355487,1742332252487,-294.24,0.00013,2]
[356355488,1742332252499,-294.24,0.00013,2]
[356355489,1742332252514,-294.24,0.00013,2]
[356355490,1742332252524,-294.24,0.00013,2]
[356355491,1742332252535,-294.24,0.00013,2]
[356355492,1742332252547,-294.24,0.00013,2]
[356355493,1742332252557,-294.24,0.00013,2]
[356355494,1742332252566,-294.24,0.00013,2]
[356355495,1742332252576,-294.24,0.00013,2]
[356355496,1742332252586,-294.24,0.00013,2]
[356355497,1742332252595,-294.24,0.00013,2]
[356355498,1742332252604,-294.24,0.00013,2]
[356355499,1742332252614,-294.24,0.00013,2]
[356355500,1742332252624,-294.24,0.00013,2]
[356355501,1742332252633,-294.24,0.00013,2]
[356355502,1742332252643,-294.24,0.00013,2]
[356355503,1742332252653,-294.24,0.00013,2]
[356355504,1742332252663,-294.24,0.00013,2]
[356355505,1742332252672,-294.24,0.00013,2]
[356355506,1742332252682,-294.24,0.00013,2]
[356355507,1742332252691,-294.24,0.00013,2]
[356355508,1742332252700,-294.24,0.00013,2]
[356355509,1742332252710,-294.24,0.00013,2]
[356355510,1742332252720,-294.24,0.00013,2]
[356355511,1742332252729,-294.24,0.00013,2]
[356355512,1742332252739,-294.24,0.00013,2]
[356355513,1742332252750,-151.0,0.00013,2]
[356355514,1742332252759,-294.24,0.00013,2]
[356355515,1742332252769,-294.24,0.00013,2]
[356355516,1742332252779,-294.24,0.00013,2]
[356355517,1742332252789,-294.24,0.00013,2]
[356355518,1742332252799,-294.24,0.00013,2]
[356355519,1742332252809,-294.24,0.00013,2]
[356355520,1742332252819,-294.24,0.00013,2]
[356355521,1742332252830,-294.24,0.00013,2]
[356355522,1742332252840,-294.24,0.00013,2]
[356355523,1742332252851,-151.0,0.00013016,2]
[356355524,1742332252861,-151.0,0.00013016,2]
[356355525,1742332252872,-1370.99,0.00013016,2]
[356355526,1742332252882,-150.0,0.00013039,2]
[356355527,1742332252898,-155.82229396,0.00013041,2]
[356355528,1742332252908,-322.74972886,0.00013046,2]
[356355529,1742332252919,-216.46314616,0.00013046,2]
[356355530,1742332252930,-174.34,0.00013069,2]
[356355531,1742332252940,-1152.0,0.00013088,2]
[356355532,1742332252951,-155.82229396,0.00013123,2]
[356355533,1742332252963,-155.82229396,0.00013205,2]
[356355534,1742332252973,-322.74972886,0.00013249,2]
[356355535,1742332252983,-216.46314616,0.00013249,2]
[356355536,1742332252994,-150.0,0.00013273,2]
[356355537,1742332253005,-155.82229396,0.00013288,2]
[356355538,1742332253015,-218.0,0.0001335,2]
[356355539,1742332253026,-155.82229396,0.0001337,2]
[356355540,1742332253036,-155.82229396,0.00013425,2]
[356355541,1742332253047,-150.0,0.00013446,2]
[356355542,1742332253057,-322.74972886,0.00013452,2]
[356355543,1742332253068,-216.46314616,0.00013452,2]
[356355544,1742332253079,-200.0,0.000135,2]
[356355545,1742332253090,-150.0,0.00013506,2]
[356355546,1742332253100,-155.82229396,0.00013507,2]
[356355547,1742332253111,-155.82229396,0.00013589,2]
[356355548,1742332253122,-322.74972886,0.00013655,2]
[356355549,1742332253132,-216.46314616,0.00013655,2]
[356355550,1742332253143,-155.82229396,0.00013671,2]
[356355551,1742332253153,-500.0,0.00013699,2]
[356355552,1742332253163,-200.0,0.00013699,7]
[356355553,1742332253173,-153.0,0.00013699,2]
[356355554,1742332253183,-153.0,0.00013699,2]
[356355555,1742332253194,-153.0,0.00013699,2]
[356355556,1742332253204,-153.0,0.00013699,2]
[356355557,1742332253215,-153.0,0.00013699,2]
[356355558,1742332253226,-153.0,0.00013699,2]
[356355559,1742332253236,-153.0,0.00013699,2]
[356355560,1742332253246,-153.0,0.00013699,2]
[356355561,1742332253257,-153.0,0.00013699,2]
[356355562,1742332253267,-153.0,0.00013699,2]
[356355563,1742332253278,-153.0,0.00013699,2]
[356355564,1742332253288,-153.0,0.00013699,2]
[356355565,1742332253299,-153.0,0.00013699,2]
[356355566,1742332253309,-153.0,0.00013699,2]
[356355567,1742332253319,-153.0,0.00013699,2]
[356355568,1742332253329,-153.0,0.00013699,2]
[356355569,1742332253339,-153.0,0.00013699,2]
[356355570,1742332253350,-153.0,0.00013699,2]
[356355571,1742332253360,-153.0,0.00013699,2]
[356355572,1742332253371,-153.0,0.00013699,2]
[356355573,1742332253382,-153.0,0.00013699,2]
[356355574,1742332253392,-153.0,0.00013699,2]
[356355575,1742332253402,-153.0,0.00013699,2]
[356355576,1742332253412,-153.0,0.00013699,2]
[356355577,1742332253422,-153.0,0.00013699,2]
[356355578,1742332253432,-153.0,0.00013699,2]
[356355579,1742332253442,-153.0,0.00013699,2]
[356355580,1742332253452,-153.0,0.00013699,2]
[356355581,1742332253462,-153.0,0.00013699,2]
[356355582,1742332253472,-153.0,0.00013699,2]
[356355583,1742332253483,-153.0,0.00013699,2]
[356355584,1742332253494,-153.0,0.00013699,2]
[356355585,1742332253508,-153.0,0.00013699,2]
[356355586,1742332253518,-153.0,0.00013699,2]
[356355587,1742332253528,-153.0,0.00013699,2]
[356355588,1742332253538,-153.0,0.00013699,2]
[356355589,1742332253549,-153.0,0.00013699,2]
[356355590,1742332253562,-153.0,0.00013699,2]
[356355591,1742332253572,-153.0,0.00013699,2]
[356355592,1742332253584,-153.0,0.00013699,2]
[356355593,1742332253594,-153.0,0.00013699,2]
[356355594,1742332253604,-153.0,0.00013699,2]
[356355595,1742332253614,-153.0,0.00013699,2]
[356355596,1742332253624,-153.0,0.00013699,2]
[356355597,1742332253635,-153.0,0.00013699,2]
[356355598,1742332253645,-153.0,0.00013699,2]
[356355599,1742332253655,-153.0,0.00013699,2]
[356355600,1742332253665,-153.0,0.00013699,2]
[356355601,1742332253675,-500.0,0.00013699,13]
[356355602,1742332253686,-500.0,0.00013699,13]
[356355603,1742332253696,-500.0,0.00013699,13]
[356355604,1742332253706,-500.0,0.00013699,13]
[356355605,1742332253716,-500.0,0.00013699,13]
[356355606,1742332253726,-500.0,0.00013699,13]
[356355607,1742332253736,-613.0,0.00013699,13]
[356355608,1742332253747,-500.0,0.00013699,2]
[356355609,1742332253757,-200.0,0.00013699,2]
[356355610,1742332253767,-1906.76,0.00013699,2]
[356355611,1742332253778,-150.27,0.00013699,2]
[356355612,1742332253788,-6005.28,0.00013699,2]
[356355613,1742332253798,-500.0,0.00013699,2]
[356355614,1742332253808,-500.0,0.00013699,2]
[356355615,1742332253818,-500.0,0.00013699,2]
[356355616,1742332253829,-160.06323211,0.00013699,2]
[356355617,1742332253839,-500.0,0.00013699,2]
[356355618,1742332253849,-452.37658592,0.00013699,2]
[356355619,1742332253859,-500.0,0.00013699,2]
[356355620,1742332253869,-500.0,0.00013699,2]
[356355621,1742332253879,-556.50652323,0.00013699,2]
[356355622,1742332253889,-151.0,0.00013699,2]
[356355623,1742332253900,-151.0,0.00013699,2]
[356355624,1742332253911,-152.371078,0.00013699,2]
[356355625,1742332253921,-600.0,0.000137,2]
[356355626,1742332253932,-325.0,0.000137,2]
[356355627,1742332253943,-150.0,0.0001374,2]
[356355628,1742332253953,-322.74972886,0.00013858,2]
[356355629,1742332253964,-216.46314616,0.00013858,2]
[356355630,1742332253975,-150.0,0.00013974,2]
[356355631,1742332253985,-10000.0,0.00014,5]
[356355632,1742332253998,-150.0,0.00014021,2]
[356355633,1742332254009,-322.74972886,0.00014061,2]
[356355634,1742332254019,-216.46314616,0.00014061,2]
[356355635,1742332254030,-150.0,0.00014208,2]
[356355636,1742332254042,-322.74972886,0.00014264,2]
[356355637,1742332254052,-216.46314616,0.00014264,2]
[356355638,1742332254063,-218.0,0.0001438,2]
[356355639,1742332254074,-1906.76,0.00014384,2]
[356355640,1742332254084,-1613.0,0.00014396,2]
[356355641,1742332254095,-150.0,0.00014441,2]
[356355642,1742332254106,-322.74972886,0.00014467,2]
[356355643,1742332254116,-216.46314616,0.00014467,2]
[356355644,1742332254127,-150.0,0.00014595,2]
[356355645,1742332254137,-322.74972886,0.0001467,2]
[356355646,1742332254148,-216.46314616,0.0001467,2]
[356355647,1742332254158,-150.0,0.00014675,2]
[356355648,1742332254169,-1681.8,0.00014743,2]
[356355649,1742332254179,-322.74972886,0.00014873,2]
[356355650,1742332254190,-216.46314616,0.00014873,2]
[356355651,1742332254200,-150.0,0.00014909,2]
[356355652,1742332254211,-2187.29796752,0.00015,2]
[356355653,1742332254221,-10000.0,0.00015,6]
[356355654,1742332254231,-400.0,0.00015,2]
[356355655,1742332254242,-1906.76,0.00015068,2]
[356355656,1742332254252,-300.0,0.00015068,2]
[356355657,1742332254263,-322.74972886,0.00015077,2]
[356355658,1742332254273,-216.46314616,0.00015077,2]
[356355659,1742332254283,-150.0,0.00015143,2]
[356355660,1742332254294,-150.0,0.00015169,2]
[356355661,1742332254304,-322.74972886,0.0001528,2]
[356355662,1742332254314,-216.46314616,0.0001528,2]
[356355663,1742332254324,-151.0,0.000153,2]
[356355664,1742332254334,-151.0,0.000153,2]
[356355665,1742332254344,-151.0,0.000153,2]
[356355666,1742332254354,-151.0,0.000153,2]
[356355667,1742332254364,-150.0,0.00015376,2]
[356355668,1742332254374,-316.412486,0.000154,2]
[356355669,1742332254385,-316.412486,0.000154,2]
[356355670,1742332254395,-151.0,0.000154,2]
[356355671,1742332254405,-218.0,0.0001541,2]
[356355672,1742332254415,-322.74972886,0.00015483,2]
[356355673,1742332254426,-216.46314616,0.00015483,2]
[356355674,1742332254436,-151.0,0.000156,2]
[356355675,1742332254447,-1090.697245,0.000156,2]
[356355676,1742332254457,-1090.697245,0.000156,2]
[356355677,1742332254467,-150.0,0.0001561,2]
[356355678,1742332254478,-3922.0,0.00015672,2]
[356355679,1742332254489,-236.988,0.00015672,2]
[356355680,1742332254502,-151.0,0.00015672,2]
[356355681,1742332254513,-322.74972886,0.00015686,2]
[356355682,1742332254524,-216.46314616,0.00015686,2]
[356355683,1742332254534,-151.0,0.000157,2]
[356355684,1742332254545,-366.065596,0.000157,2]
[356355685,1742332254556,-366.065596,0.000157,2]
[356355686,1742332254567,-151.0,0.000157,2]
[356355687,1742332254579,-150.0,0.00015744,2]
[356355688,1742332254590,-1906.76,0.00015753,2]
[356355689,1742332254601,-151.0,0.000158,2]
[356355690,1742332254612,-181.739404,0.000158,2]
[356355691,1742332254623,-181.739404,0.000158,2]
[356355692,1742332254633,-150.0,0.00015844,2]
[356355693,1742332254643,-322.74972886,0.00015889,2]
[356355694,1742332254654,-216.46314616,0.00015889,2]
[356355695,1742332254664,-151.0,0.000159,2]
[356355696,1742332254675,-24447.75054101,0.00016,3]
[356355697,1742332254686,-500.0,0.00016,16]
[356355698,1742332254697,-10000.0,0.00016,6]
[356355699,1742332254709,-151.0,0.00016,2]
[356355700,1742332254719,-151.0,0.00016,2]
[356355701,1742332254731,-151.0,0.00016,2]
[356355702,1742332254741,-151.0,0.00016,2]
[356355703,1742332254751,-151.0,0.00016,2]
[356355704,1742332254762,-360.536216,0.00016,2]
[356355705,1742332254774,-360.536216,0.00016,2]
[356355706,1742332254785,-154.45,0.00016013,2]
[356355707,1742332254796,-150.0,0.00016013,2]
[356355708,1742332254806,-150.0,0.00016013,2]
[356355709,1742332254817,-150.0,0.00016013,2]
[356355710,1742332254828,-150.0,0.00016013,2]
[356355711,1742332254840,-150.0,0.00016078,2]
[356355712,1742332254851,-322.74972886,0.00016092,2]
[356355713,1742332254862,-216.46314616,0.00016092,2]
[356355714,1742332254874,-151.0,0.000161,2]
[356355715,1742332254885,-151.0,0.000161,2]
[356355716,1742332254907,-151.0,0.000161,2]
[356355717,1742332254919,-151.0,0.00016116,2]
[356355718,1742332254931,-151.0,0.00016116,2]
[356355719,1742332254941,-151.0,0.00016116,2]
[356355720,1742332254952,-152.0928,0.00016116,2]
[356355721,1742332254964,-151.0,0.00016116,2]
[356355722,1742332254975,-9999.99,0.00016116,2]
[356355723,1742332254986,-151.0,0.000162,2]
[356355724,1742332254999,-322.74972886,0.00016295,2]
[356355725,1742332255010,-216.46314616,0.00016295,2]
[356355726,1742332255021,-150.0,0.00016311,2]
[356355727,1742332255032,-150.0,0.00016318,2]
[356355728,1742332255045,-200.0,0.00016438,7]
[356355729,1742332255057,-1906.76,0.00016438,2]
[356355730,1742332255068,-300.0,0.00016438,2]
[356355731,1742332255079,-153.384424,0.00016438,2]
[356355732,1742332255091,-153.384424,0.00016438,2]
[356355733,1742332255103,-153.384424,0.00016438,2]
[356355734,1742332255114,-153.384424,0.00016438,2]
[356355735,1742332255126,-153.384424,0.00016438,2]
[356355736,1742332255137,-153.384424,0.00016438,2]
[356355737,1742332255148,-153.384424,0.00016438,2]
[356355738,1742332255160,-153.384424,0.00016438,2]
[356355739,1742332255172,-153.384424,0.00016438,2]
[356355740,1742332255183,-153.384424,0.00016438,2]
[356355741,1742332255558,-153.384424,0.00016438,2]
[356355742,1742332255579,-153.384424,0.00016438,2]
[356355743,1742332255590,-153.384424,0.00016438,2]
[356355744,1742332255600,-153.384424,0.00016438,2]
[356355745,1742332255610,-153.384424,0.00016438,2]
[356355746,1742332255620,-153.384424,0.00016438,2]
[356355747,1742332255631,-2000.0,0.00016438,2]
[356355748,1742332255641,-2000.0,0.00016438,2]
[356355749,1742332255651,-2000.0,0.00016438,2]
[356355750,1742332255661,-2000.0,0.00016438,2]
[356355751,1742332255671,-1313.525029,0.00016438,2]
[356355752,1742332255681,-1000.0,0.00016438,7]
[356355753,1742332255691,-1000.0,0.00016438,7]
[356355754,1742332255702,-1000.0,0.00016438,7]
[356355755,1742332255713,-1000.0,0.00016438,7]
[356355756,1742332255723,-1042.155683,0.00016438,7]
[356355757,1742332255733,-218.0,0.0001644,2]
[356355758,1742332255742,-322.74972886,0.00016498,2]
[356355759,1742332255753,-216.46314616,0.00016498,2]
[356355760,1742332255762,-150.0,0.00016545,2]
[356355761,1742332255772,-1009.03,0.000167,7]
[356355762,1742332255782,-151.0,0.000167,2]
[356355763,1742332255792,-151.0,0.000167,2]
[356355764,1742332255802,-322.74972886,0.00016701,2]
[356355765,1742332255812,-216.46314616,0.00016701,2]
[356355766,1742332255823,-150.0,0.00016701,2]
[356355767,1742332255833,-150.0,0.00016779,2]
[356355768,1742332255843,-151.0,0.000168,2]
[356355769,1742332255853,-151.0,0.000168,2]
[356355770,1742332255863,-150.0,0.00016892,2]
[356355771,1742332255873,-214481.0,0.000169,2]
[356355772,1742332255883,-322.74972886,0.00016904,2]
[356355773,1742332255893,-216.46314616,0.00016904,2]
[356355774,1742332255903,-1681.8,0.00016917,2]
[356355775,1742332255912,-10000.0,0.00017,7]
[356355776,1742332255922,-151.0,0.00017,2]
[356355777,1742332255932,-151.0,0.00017,2]
[356355778,1742332255942,-151.0,0.00017,2]
[356355779,1742332255952,-450.0,0.00017,2]
[356355780,1742332255963,-151.0,0.00017,2]
[356355781,1742332255974,-360.536216,0.00017,2]
[356355782,1742332255984,-360.536216,0.00017,2]
[356355783,1742332255995,-151.0,0.00017,2]
[356355784,1742332256005,-150.0,0.00017013,2]
[356355785,1742332256015,-322.74972886,0.00017107,2]
[356355786,1742332256027,-216.46314616,0.00017107,2]
[356355787,1742332256038,-5550.0,0.000172,3]
[356355788,1742332256048,-150.0,0.00017246,2]
[356355789,1742332256058,-322.74972886,0.0001731,2]
[356355790,1742332256068,-216.46314616,0.0001731,2]
[356355791,1742332256078,-5550.0,0.000174,5]
[356355792,1742332256088,-150.0,0.00017467,2]
[356355793,1742332256099,-218.0,0.0001747,2]
[356355794,1742332256109,-150.0,0.0001748,2]
[356355795,1742332256119,-322.74972886,0.00017513,2]
[356355796,1742332256129,-216.46314616,0.00017513,2]
[356355797,1742332256139,-150.0,0.00017714,2]
[356355798,1742332256149,-322.74972886,0.00017716,2]
[356355799,1742332256160,-216.46314616,0.00017716,2]
[356355800,1742332256169,-322.74972886,0.00017919,2]
[356355801,1742332256179,-216.46314616,0.00017919,2]
[356355802,1742332256189,-150.0,0.00017948,2]
[356355803,1742332256199,-773.79,0.00017963,2]
[356355804,1742332256209,-500.0,0.00018,20]
[356355805,1742332256219,-150.0,0.00018041,2]
[356355806,1742332256230,-200.0,0.00018082,2]
[356355807,1742332256240,-322.74972886,0.00018122,2]
[356355808,1742332256250,-216.46314616,0.00018122,2]
[356355809,1742332256259,-150.0,0.00018181,2]
[356355810,1742332256270,-300.0,0.00018263,2]
[356355811,1742332256281,-300.0,0.00018289,2]
[356355812,1742332256292,-300.0,0.00018315,2]
[356355813,1742332256302,-322.74972886,0.00018325,2]
[356355814,1742332256313,-216.46314616,0.00018325,2]
[356355815,1742332256323,-412.65712994,0.00018341,2]
[356355816,1742332256332,-150.0,0.00018415,2]
[356355817,1742332256342,-150.27,0.00018493,2]
[356355818,1742332256351,-218.0,0.0001851,2]
[356355819,1742332256361,-322.74972886,0.00018529,2]
[356355820,1742332256371,-216.46314616,0.00018529,2]
[356355821,1742332256381,-159.7,0.000186,2]
[356355822,1742332256390,-159.7,0.000186,2]
[356355823,1742332256400,-150.0,0.00018616,2]
[356355824,1742332256410,-150.0,0.00018649,2]
[356355825,1742332256420,-151.0,0.00018672,2]
[356355826,1742332256430,-322.74972886,0.00018732,2]
[356355827,1742332256441,-216.46314616,0.00018732,2]
[356355828,1742332256450,-8500.0,0.00018786,2]
[356355829,1742332256459,-8500.0,0.00018794,2]
[356355830,1742332256470,-316.412486,0.00018803,2]
[356355831,1742332256481,-316.412486,0.00018803,2]
[356355832,1742332256490,-211.035979,0.00018803,2]
[356355833,1742332256502,-208.590808,0.00018803,2]
[356355834,1742332256513,-151.0,0.00018803,2]
[356355835,1742332256523,-151.0,0.00018803,2]
[356355836,1742332256532,-8500.0,0.00018803,2]
[356355837,1742332256543,-8500.0,0.00018812,2]
[356355838,1742332256552,-151.0,0.00018812,2]
[356355839,1742332256563,-597.332216,0.00018812,2]
[356355840,1742332256572,-151.0,0.00018812,2]
[356355841,1742332256585,-181.739404,0.00018812,2]
[356355842,1742332256595,-181.739404,0.00018812,2]
[356355843,1742332256605,-151.0,0.00018812,2]
[356355844,1742332256615,-366.065596,0.00018812,2]
[356355845,1742332256624,-366.065596,0.00018812,2]
[356355846,1742332256634,-153.384424,0.00018812,2]
[356355847,1742332256643,-153.384424,0.00018812,2]
[356355848,1742332256653,-151.0,0.00018812,2]
[356355849,1742332256663,-291.949358,0.00018812,2]
[356355850,1742332256673,-1090.697245,0.00018812,2]
[356355851,1742332256683,-1090.697245,0.00018812,2]
[356355852,1742332256693,-8500.0,0.00018821,2]
[356355853,1742332256703,-8500.0,0.0001883,2]
[356355854,1742332256714,-8500.0,0.00018838,2]
[356355855,1742332256723,-188.818107,0.00018847,2]
[356355856,1742332256733,-214.522162,0.00018847,2]
[356355857,1742332256743,-151.0,0.00018847,2]
[356355858,1742332256753,-8500.0,0.00018847,2]
[356355859,1742332256763,-151.0,0.00018856,2]
[356355860,1742332256772,-8500.0,0.00018856,2]
[356355861,1742332256782,-8500.0,0.00018865,2]
[356355862,1742332256791,-8500.0,0.00018874,2]
[356355863,1742332256802,-8500.0,0.00018882,2]
[356355864,1742332256812,-150.0,0.00018883,2]
[356355865,1742332256821,-8500.0,0.00018891,2]
[356355866,1742332256831,-8500.0,0.000189,2]
[356355867,1742332256840,-8500.0,0.000189,2]
[356355868,1742332256850,-151.0,0.000189,2]
[356355869,1742332256860,-360.536216,0.000189,2]
[356355870,1742332256870,-360.536222,0.000189,2]
[356355871,1742332256880,-268.274466,0.000189,2]
[356355872,1742332256890,-322.74972886,0.00018935,2]
[356355873,1742332256899,-216.46314616,0.00018935,2]
[356355874,1742332256909,-48010.63909713,0.00019,2]
[356355875,1742332256919,-989.07637984,0.00019,2]
[356355876,1742332256928,-151.0,0.00019,2]
[356355877,1742332256938,-151.0,0.00019,2]
[356355878,1742332256947,-151.0,0.00019,2]
[356355879,1742332256957,-152.465043,0.00019,2]
[356355880,1742332256967,-1096.46779732,0.00019,2]
[356355881,1742332256977,-151.0,0.00019,2]
[356355882,1742332256987,-597.332207,0.00019,2]
[356355883,1742332256997,-151.0,0.00019,2]
[356355884,1742332257008,-181.739404,0.00019,2]
[356355885,1742332257017,-181.739409,0.00019,2]
[356355886,1742332257027,-151.0,0.00019,2]
[356355887,1742332257036,-366.065596,0.00019,2]
[356355888,1742332257046,-366.065599,0.00019,2]
[356355889,1742332257056,-153.384424,0.00019,2]
[356355890,1742332257066,-500.0,0.00019,2]
[356355891,1742332257075,-153.384428,0.00019,2]
[356355892,1742332257084,-151.0,0.00019,2]
[356355893,1742332257094,-1090.697245,0.00019,2]
[356355894,1742332257103,-1090.697242,0.00019,2]
[356355895,1742332257113,-316.412486,0.00019,2]
[356355896,1742332257123,-316.412482,0.00019,2]
[356355897,1742332257132,-151.0,0.00019,2]
[356355898,1742332257142,-151.0,0.00019,2]
[356355899,1742332257152,-1681.8,0.00019092,2]
[356355900,1742332257162,-150.0,0.00019116,2]
[356355901,1742332257171,-322.74972886,0.00019138,2]
[356355902,1742332257181,-216.46314616,0.00019138,2]
[356355903,1742332257191,-5000.0,0.0001917,2]
[356355904,1742332257200,-450.0,0.00019178,14]
[356355905,1742332257210,-231.91683655,0.00019178,7]
[356355906,1742332257220,-151.0,0.00019178,2]
[356355907,1742332257230,-265.991653,0.00019178,2]
[356355908,1742332257239,-1000.0,0.00019178,2]
[356355909,1742332257249,-500.56171407,0.00019178,2]
[356355910,1742332257258,-999.994,0.00019178,2]
[356355911,1742332257268,-1000.0,0.00019178,2]
[356355912,1742332257277,-150.0,0.0001919,4]
[356355913,1742332257287,-943.0,0.000192,2]
[356355915,1742332257297,-325.29645451,0.000192,2]
[356355916,1742332257306,-600.0,0.000192,2]
[356355917,1742332257316,-628.86,0.00019339,2]
[356355918,1742332257326,-2483.31,0.00019339,2]
[356355919,1742332257335,-322.74972886,0.00019341,4]
[356355920,1742332257344,-216.46314616,0.00019341,4]
[356355921,1742332257354,-150.0,0.0001935,4]
[356355922,1742332257363,-150.0,0.0001935,4]
[356355923,1742332257373,-1063.0,0.0001938,2]
[356355924,1742332257383,-218.0,0.0001954,2]
[356355925,1742332257392,-322.74972886,0.00019544,4]
[356355926,1742332257402,-216.46314616,0.00019544,4]
[356355927,1742332257411,-150.0,0.00019584,4]
[356355928,1742332257420,-322.74972886,0.00019747,4]
[356355929,1742332257430,-216.46314616,0.00019747,4]